bitfinex-derivatives/quotes_SOLF0:USTF0_20250110
["timestamp","ask_amount","ask_price","bid_price","bid_amount"]
[1736495903874,6.67080668,192.05,192.0,5.4741188]
[1736495904276,6.67080668,192.05,192.01,5.4741188]
[1736495904576,6.67080668,192.05,192.02,2.604]
[1736495904966,6.67080668,192.05,191.96,7.12946825]
[1736495905172,6.67080668,192.05,191.99,6.67080668]
[1736495905674,6.67080668,192.03,192.0,2.6042]
[1736495905873,6.67080668,192.03,192.0,8.08249775]
[1736495906069,6.67080668,192.03,192.0,5.47829775]
[1736495906571,6.67080668,192.03,192.01,5.47829775]
[1736495906968,6.67080668,192.03,192.02,5.47829775]
[1736495908573,6.67080668,192.03,192.02,5.50559954]
[1736495908969,9.27460668,192.03,192.02,5.50559954]
[1736495909175,9.27460668,192.03,191.94,29.20261493]
[1736495909176,6.67080668,192.03,191.94,22.53180825]
[1736495909475,6.67080668,191.99,191.94,22.53180825]
[1736495909874,6.67080668,191.99,191.94,15.40234]
[1736495910078,6.67080668,191.99,191.97,2.6045]
[1736495911078,6.67080668,192.01,191.98,2.6045]
[1736495911672,9.27490668,192.01,191.98,2.6045]
[1736495913076,6.67080668,192.01,191.98,2.6045]
[1736495915977,9.27520668,191.99,191.95,2.6049]
[1736495916374,9.27520668,191.99,191.94,15.40234]
[1736495916574,2.6047,191.97,191.94,12.20004]
[1736495916782,6.67080668,191.99,191.94,12.20004]
[1736495918083,9.27520668,191.99,191.95,2.6049]
[1736495919480,2.6042,192.01,191.97,2.6046]
[1736495919676,0.2697,192.07,191.98,6.67080668]
[1736495919876,6.67080668,192.05,191.98,6.67080668]
[1736495920576,6.67080668,192.05,192.0,6.67080668]
[1736495921277,6.67080668,192.05,192.02,2.604]
[1736495922589,6.67080668,192.05,191.96,50.62759303]
[1736495922888,6.67080668,192.05,192.01,2.6041]
[1736495925187,0.1373,192.13,191.99,6.67080668]
[1736495925488,6.67080668,192.1,192.03,6.67080668]
[1736495926190,4.72,192.12,192.05,6.67080668]
[1736495926386,6.67080668,192.11,192.05,6.67080668]
[1736495926592,6.67080668,192.11,192.07,2.6032]
[1736495928092,6.67080668,192.11,192.05,6.67080668]
[1736495929092,6.67080668,192.11,192.07,2.6032]
[1736495930594,6.67080668,192.09,192.07,2.6032]
[1736495931294,6.67080668,192.09,192.03,11.56540668]
[1736495931492,6.67080668,192.09,192.04,2.6037]
[1736495931493,6.67080668,192.07,192.04,2.6037]
[1736495933790,6.67080668,192.05,191.97,6.67080668]
[1736495933990,6.67080668,192.05,192.0,2.6042]
[1736495934189,6.67080668,192.05,191.97,9.89130668]
[1736495934384,6.67080668,192.05,192.01,2.6041]
[1736495935890,6.67080668,192.03,192.01,2.6041]
[1736495936091,6.67080668,192.03,191.98,2.6044]
[1736495936291,6.67080668,192.01,191.98,2.6044]
[1736495937890,6.67080668,192.01,191.97,3.2205]
[1736495938088,6.67080668,192.01,191.99,2.6044]
[1736495941398,6.67080668,192.01,191.97,3.2205]
[1736495941693,6.67080668,192.01,191.98,2.6045]
[1736495942089,6.67080668,192.01,191.97,3.2205]
[1736495942299,6.67080668,191.99,191.94,12.20004]
[1736495942500,6.67080668,191.97,191.94,12.20004]
[1736495942701,6.67080668,191.97,191.94,14.80514]
[1736495943097,6.67080668,191.97,191.94,12.20004]
[1736495944200,6.67080668,191.95,191.94,12.20004]
[1736495951803,9.27570668,191.95,191.94,12.20004]
[1736495955103,6.67080668,191.95,191.86,3.127]
[1736495955307,6.67080668,191.87,191.84,1.5631]
[1736495956204,6.67080668,191.87,191.84,4.1694]
[1736495956511,6.67080668,191.87,191.84,2.6063]
[1736495957307,6.67080668,191.87,191.81,9.82200668]
[1736495957308,6.67080668,191.87,191.85,2.6062]
[1736495958916,6.67080668,191.87,191.84,2.6064]
[1736495959907,6.67080668,191.85,191.82,2.6067]
[1736495960105,6.67080668,191.85,191.81,3.1512]
[1736495961306,6.67080668,191.85,191.81,5.7579]
[1736495961510,6.67080668,191.85,191.81,3.1512]
[1736495963104,6.67080668,191.85,191.82,2.6067]
[1736495963505,6.67080668,191.83,191.79,5.23510576]
[1736495963813,6.67080668,191.83,191.8,2.6069]
[1736495964414,6.67080668,191.83,191.82,2.6067]
[1736495964610,2.606,191.87,191.82,2.6067]
[1736495964611,6.67080668,191.85,191.82,2.6067]
[1736495965117,4.72,191.89,191.75,2.6076]
[1736495965118,6.67080668,191.83,191.75,2.6076]
[1736495965309,6.67080668,191.77,191.75,2.6076]
[1736495965710,2.6075,191.76,191.71,2.6081]
[1736495966014,6.67080668,191.73,191.71,2.6081]
[1736495966404,11.39080668,191.73,191.63,7.21855354]
[1736495966609,6.67080668,191.71,191.64,8.35190668]
[1736495967116,6.67080668,191.71,191.66,2.6089]
[1736495967308,6.67080668,191.71,191.64,8.35190668]
[1736495967808,6.67080668,191.71,191.68,2.6086]
[1736495968013,6.67080668,191.69,191.68,2.6086]
[1736495968613,2.6076,191.76,191.69,2.6084]
[1736495968813,0.4131,191.8,191.57,28.87421416]
[1736495968814,6.67080668,191.71,191.57,28.87421416]
[1736495969020,6.67080668,191.68,191.61,6.67080668]
[1736495969316,6.67080668,191.68,191.67,2.6087]
[1736495970316,4.72,191.71,191.68,2.6085]
[1736495970518,6.67080668,191.7,191.68,2.6085]
[1736495978022,0.4131,191.8,191.66,6.67080668]
[1736495978218,6.67080668,191.74,191.68,6.67080668]
[1736495978424,11.39080668,191.74,191.68,6.67080668]
[1736495978827,11.39080668,191.74,191.73,2.6079]
[1736495979723,0.4196,191.85,191.74,2.6077]
[1736495979925,0.4196,191.85,191.7,6.67080668]
[1736495980132,6.67080668,191.78,191.71,3.1776]
[1736495980328,6.67080668,191.78,191.71,4.708]
[1736495980827,6.67080668,191.78,191.77,2.6074]
[1736495981027,0.1431,191.85,191.72,6.67080668]
[1736495981229,6.67080668,191.78,191.72,6.67080668]
[1736495981727,6.67080668,191.78,191.77,2.6074]
[1736495984635,6.67080668,191.78,191.71,4.708]
[1736495984834,6.67080668,191.76,191.75,2.6075]
[1736495985230,2.6063,191.86,191.78,2.6071]
[1736495985428,6.67080668,191.79,191.78,2.6071]
[1736495986034,6.67080668,191.81,191.8,2.607]
[1736495986233,0.1427,191.91,191.76,6.67080668]
[1736495986428,6.67080668,191.83,191.82,2.6067]
[1736495987338,4.72,191.87,191.83,2.6066]
[1736495987739,2.606,191.88,191.83,2.6066]
[1736495988040,7.3261,191.87,191.81,2.6067]
[1736495988228,6.67080668,191.82,191.81,2.6067]
[1736495988632,6.67080668,191.82,191.72,7.21855354]
[1736495988633,6.67080668,191.82,191.77,2.6073]
[1736495988837,6.67080668,191.79,191.77,2.6073]
[1736495989034,6.67080668,191.79,191.73,6.67080668]
[1736495990034,6.67080668,191.79,191.77,2.6073]
[1736495991129,2.6064,191.85,191.73,6.67080668]
[1736495991330,6.67080668,191.81,191.75,6.67080668]
[1736495992239,6.67080668,191.81,191.8,2.607]
[1736495993341,6.67080668,191.83,191.82,2.6067]
[1736495994938,4.72,191.87,191.83,2.6066]
[1736495995128,6.67080668,191.85,191.83,2.6066]
[1736495995333,2.6052,191.93,191.79,9.86900668]
[1736495995532,6.67080668,191.88,191.81,6.67080668]
[1736495996336,6.67080668,191.88,191.86,2.606]
[1736495998232,6.67080668,191.88,191.79,3.1982]
[1736495998437,6.67080668,191.82,191.79,3.1982]
[1736495999542,4.72,191.92,191.79,3.1982]
[1736495999737,6.67080668,191.85,191.79,3.1982]
[1736495999942,6.67080668,191.83,191.81,2.6067]
[1736496000340,2.6062,191.86,191.81,2.6067]
[1736496001343,0.2748,191.91,191.81,2.6067]
[1736496001543,2.6063,191.85,191.8,2.6069]
[1736496001842,4.72,191.84,191.8,2.6069]
[1736496002143,4.72,191.84,191.81,2.6068]
[1736496002740,4.72,191.84,191.71,1.6568]
[1736496002941,4.72,191.84,191.82,2.6067]
[1736496005243,4.72,191.84,191.8,2.6069]
[1736496005439,4.72,191.84,191.71,1.6568]
[1736496006541,4.72,191.84,191.75,2.6076]
[1736496007142,2.607,191.8,191.75,2.6076]
[1736496007645,4.72,191.84,191.71,4.2649]
[1736496007842,4.72,191.84,191.71,1.6568]
[1736496008244,2.607,191.81,191.71,1.6568]
[1736496008543,4.72,191.84,191.71,1.6568]
[1736496009942,2.6075,191.77,191.71,1.6568]
[1736496010247,4.72,191.76,191.7,1.6816]
[1736496010644,2.6078,191.74,191.7,1.6816]
[1736496011245,4.72,191.82,191.7,1.6816]
[1736496012047,2.6072,191.79,191.7,4.2899]
[1736496012241,4.72,191.82,191.7,1.6816]
[1736496013249,7.3268,191.82,191.76,2.6074]
[1736496013548,4.72,191.82,191.7,1.6816]
[1736496013743,7.3267,191.82,191.73,2.6078]
[1736496013943,7.3267,191.82,191.74,1.6222]
[1736496014543,2.6068,191.81,191.76,2.6075]
[1736496014744,4.72,191.82,191.76,2.6075]
[1736496015240,0.1415,191.88,191.77,2.6073]
[1736496015447,0.2748,191.91,191.74,1.6222]
[1736496015642,0.1422,191.96,191.75,1.5846]
[1736496015844,0.1422,191.96,191.85,2.6062]
[1736496016039,86.04,191.94,191.85,2.6062]
[1736496016245,86.04,191.94,191.75,1.5846]
[1736496016445,86.04,191.94,191.88,2.6059]
[1736496016846,2.6056,191.91,191.85,2.6063]
[1736496017243,86.04,191.94,191.75,1.5846]
[1736496017747,4.72,191.94,191.89,2.6057]
[1736496017947,4.72,191.94,191.78,28.9102707]
[1736496019151,4.72,191.94,191.8,7.22756767]
[1736496019350,4.72,191.94,191.81,1.5358]
[1736496019948,2.6055,191.91,191.82,1.5381]
[1736496020647,4.72,191.94,191.82,1.5381]
[1736496020851,2.6054,191.92,191.86,2.6061]
[1736496021045,4.72,191.94,191.86,2.6061]
[1736496021247,4.72,191.94,191.82,1.5381]
[1736496021858,2.6059,191.89,191.82,4.1447]
[1736496022451,4.72,191.94,191.82,1.5381]
[1736496022746,2.6056,191.91,191.83,2.6065]
[1736496022951,4.72,191.94,191.83,2.6065]
[1736496023750,4.72,191.94,191.81,1.5358]
[1736496023956,1.08283164,191.93,191.76,64.59276184]
[1736496024255,0.2742,191.93,191.81,2.6068]
[1736496024455,0.2742,191.93,191.76,64.59276184]
[1736496024643,2.6056,191.9,191.76,64.59276184]
[1736496024848,2.6056,191.9,191.83,2.6065]
[1736496025148,2.6056,191.9,191.76,64.59276184]
[1736496025555,4.72,191.94,191.84,2.6064]
[1736496025750,4.72,191.94,191.85,3.1516]
[1736496026952,7.3252,191.94,191.85,3.1516]
[1736496027554,2.6052,191.93,191.85,3.1516]
[1736496028253,0.2742,191.99,191.87,2.606]
[1736496028453,5.52838109,191.98,191.87,2.606]
[1736496028653,4.72,191.98,191.87,2.606]
[1736496029356,4.72,191.98,191.85,3.1516]
[1736496029557,4.72,191.97,191.86,1.6505]
[1736496030057,2.6047,191.98,191.92,2.6053]
[1736496030657,2.6047,191.97,191.92,2.6053]
[1736496031550,4.72,192.0,191.92,2.6053]
[1736496031753,2.6046,191.98,191.92,2.6053]
[1736496032361,2.6046,191.98,191.93,2.6052]
[1736496032567,2.6042,192.01,191.86,1.6505]
[1736496032857,0.4137,192.06,191.87,4.72]
[1736496032858,4.72,192.03,191.87,4.72]
[1736496033062,81.36,192.07,191.87,4.72]
[1736496033266,86.08,192.07,191.87,4.72]
[1736496033459,86.08,192.07,191.99,2.6044]
[1736496033657,4.72,192.07,191.87,4.72]
[1736496033860,7.3233,192.07,192.01,2.6041]
[1736496034061,4.72,192.07,191.87,4.72]
[1736496035064,2.6041,192.02,191.96,2.6048]
[1736496035261,4.72,192.07,191.87,4.72]
[1736496035861,2.604,192.02,191.96,2.6047]
[1736496036361,2.604,192.02,191.87,4.72]
[1736496037267,2.604,192.02,191.96,2.6047]
[1736496037468,2.604,192.02,191.87,4.72]
[1736496037969,4.72,192.07,191.91,2.6054]
[1736496038263,0.80801981,192.06,191.87,4.72]
[1736496038468,0.4126,192.14,191.87,4.72]
[1736496038770,2.6036,192.06,191.87,4.72]
[1736496038973,4.72,192.11,191.87,5.76237243]
[1736496039575,2.6032,192.09,192.02,2.604]
[1736496039874,2.6032,192.09,191.88,1.04231811]
[1736496040066,2.6032,192.09,192.03,2.6038]
[1736496040373,2.6032,192.08,192.03,2.6038]
[1736496040768,4.72,192.12,192.02,2.604]
[1736496040967,0.4126,192.14,192.02,2.604]
[1736496041272,5.52771525,192.13,192.02,2.604]
[1736496041867,2.6032,192.08,192.02,2.604]
[1736496042074,0.80771525,192.12,191.96,4.7364]
[1736496042279,2.6029,192.1,191.96,4.7364]
[1736496042571,4.7,192.13,192.05,2.6036]
[1736496042870,0.4102,192.19,191.96,4.7364]
[1736496043071,149.45540239,192.31,192.02,2.6039]
[1736496043072,0.80748673,192.18,192.02,2.6039]
[1736496043267,2.6021,192.16,191.96,4.7364]
[1736496043569,4.7,192.2,191.97,1.04182945]
[1736496043778,2.6021,192.16,191.97,1.04182945]
[1736496044168,4.7,192.2,192.12,2.6026]
[1736496044770,7.3017,192.2,192.04,1.5867]
[1736496045069,4.7,192.2,192.04,1.5867]
[1736496045269,4.7,192.2,192.05,3.3032]
[1736496045871,2.6018,192.18,192.05,3.3032]
[1736496046977,0.4102,192.3,192.05,3.3032]
[1736496047176,4.7,192.29,192.05,3.3032]
[1736496047377,0.8070131,192.28,192.05,3.3032]
[1736496047572,2.6014,192.22,192.13,2.6024]
[1736496047769,4.7,192.24,192.05,3.3032]
[1736496050179,2.6017,192.19,192.13,2.6025]
[1736496050978,2.6016,192.2,192.14,2.6024]
[1736496051177,4.7,192.24,192.14,2.6024]
[1736496052876,2.6014,192.21,192.14,2.6024]
[1736496053073,4.7,192.24,192.16,2.6021]
[1736496054080,2.6013,192.22,192.16,2.6021]
[1736496055281,4.7,192.26,192.05,3.3032]
[1736496055476,2.6011,192.24,192.17,2.602]
[1736496056380,4.7,192.27,192.05,3.3032]
[1736496056580,2.6013,192.22,192.15,2.6021]
[1736496057283,2.6013,192.22,192.06,0.95652996]
[1736496057284,4.7,192.27,192.06,0.95652996]
[1736496057485,2.6016,192.21,192.06,0.95652996]
[1736496057679,2.6016,192.21,192.07,0.95653007]
[1736496058087,2.6016,192.21,192.14,2.6022]
[1736496058385,2.6016,192.2,192.14,2.6022]
[1736496058586,4.7,192.27,192.06,0.95652996]
[1736496058776,4.7,192.27,192.07,0.95652996]
[1736496059088,2.6013,192.22,192.07,0.95652996]
[1736496059287,2.6013,192.22,192.06,0.95652996]
[1736496059586,4.7,192.27,192.08,0.95649997]
[1736496059788,2.6014,192.21,192.06,0.95652996]
[1736496059981,4.7,192.27,192.05,3.3032]
[1736496060188,4.7,192.27,192.07,0.9564957]
[1736496060387,2.6014,192.21,192.07,0.9564957]
[1736496060687,4.7,192.27,192.13,2.6024]
[1736496060889,2.6019,192.18,192.13,2.6024]
[1736496061182,2.6019,192.18,192.07,0.9564957]
[1736496061183,4.7,192.27,192.07,0.9564957]
[1736496061486,2.6024,192.14,192.07,0.9564957]
[1736496061688,4.7,192.18,192.07,3.5597957]
[1736496061988,4.7,192.18,192.07,0.9564957]
[1736496062190,0.4004,192.17,192.07,0.9564957]
[1736496062682,2.6032,192.08,192.07,0.9564957]
[1736496063080,2.6032,192.08,192.07,0.5563957]
[1736496063283,2.6032,192.08,192.07,9.57e-05]
[1736496065685,3.41868628,192.08,192.07,9.57e-05]
[1736496066486,2.6032,192.08,192.07,9.57e-05]
[1736496068592,7.3032,192.08,192.07,9.57e-05]
[1736496068988,2.603,192.1,192.07,9.57e-05]
[1736496069285,4.7,192.12,192.07,9.57e-05]
[1736496069481,0.2672,192.17,192.07,9.57e-05]
[1736496069681,81.24,192.28,192.07,9.57e-05]
[1736496069993,2.6016,192.2,192.13,2.6025]
[1736496070186,2.6016,192.2,192.08,4.7807]
[1736496070692,4.7,192.27,192.08,4.7807]
[1736496070886,2.6017,192.19,192.11,2.6026]
[1736496071489,2.6017,192.19,192.09,2.603]
[1736496071889,2.6017,192.19,192.08,4.7807]
[1736496072491,2.602,192.17,192.08,7.3838]
[1736496073289,2.6021,192.16,192.08,7.3838]
[1736496073483,4.7,192.19,192.08,4.7807]
[1736496073683,4.7,192.19,192.08,3.1693]
[1736496074282,4.7,192.19,192.08,5.7725]
[1736496074487,2.6023,192.15,192.08,5.7725]
[1736496074688,4.7,192.19,192.08,3.1693]
[1736496074889,2.6023,192.15,192.08,3.1693]
[1736496075289,4.7,192.19,192.08,3.1693]
[1736496075891,2.6024,192.14,192.08,3.1693]
[1736496078487,4.7,192.19,192.08,3.1693]
[1736496078488,4.7,192.19,192.1,2.6029]
[1736496079391,4.7,192.19,192.08,3.1693]
[1736496080188,2.6025,192.14,192.08,3.1693]
[1736496080394,4.7,192.19,192.03,2.6037]
[1736496080594,4.7,192.19,192.02,1.6793]
[1736496081392,2.6036,192.06,192.0,1.6231]
[1736496081591,4.7,192.07,191.96,1.6793]
[1736496082097,2.6041,192.01,191.96,1.6793]
[1736496082799,2.604,192.03,191.96,1.6793]
[1736496083298,4.7,192.07,191.96,1.6793]
[1736496083499,4.7,192.07,191.96,4.2841]
[1736496083997,4.7,192.07,191.96,1.6793]
[1736496084497,7.3033,192.07,191.96,1.6793]
[1736496084997,205.66,192.2,191.96,1.6793]
[1736496085200,4.7,192.19,191.96,1.6793]
[1736496085390,5.51499527,192.19,191.96,1.6793]
[1736496085590,5.51499527,192.19,192.03,2.6038]
[1736496085787,0.81499527,192.18,192.03,2.6038]
[1736496086895,0.81499527,192.18,191.96,1.6793]
[1736496087093,0.81499527,192.18,192.01,2.604]
[1736496087293,0.81499527,192.18,191.96,1.6793]
[1736496087595,2.6037,192.05,191.98,2.6045]
[1736496087796,7.3037,192.05,191.98,2.6045]
[1736496087997,2.6038,192.04,191.96,1.6793]
[1736496088296,2.6038,192.04,191.96,4.284]
[1736496088499,2.6038,192.04,191.96,1.6793]
[1736496088895,2.6038,192.04,191.97,2.6046]
[1736496089697,2.6041,192.02,191.94,3.1521]
[1736496091196,4.7,192.05,191.94,3.1521]
[1736496091601,4.7,192.05,191.98,2.6045]
[1736496091796,4.7,192.05,191.94,3.1521]
[1736496092401,15.66,192.18,191.94,3.1521]
[1736496092603,2.6031,192.09,191.94,3.1521]
[1736496092802,4.7,192.08,191.94,3.1521]
[1736496093002,7.3033,192.08,191.94,3.1521]
[1736496093201,4.7,192.08,191.94,3.1521]
[1736496093598,2.6037,192.05,191.99,2.6043]
[1736496094197,2.6037,192.05,191.94,3.1521]
[1736496094398,2.6037,192.05,192.0,2.6043]
[1736496094897,2.6037,192.05,191.94,3.1521]
[1736496095094,4.7,192.08,191.94,3.1521]
[1736496095606,4.7,192.08,191.95,2.6048]
[1736496096104,4.7,192.08,191.94,3.1521]
[1736496096702,4.7,192.07,191.94,3.1521]
[1736496097204,2.6035,192.06,192.0,2.6043]
[1736496097601,4.7,192.07,192.02,2.6039]
[1736496098100,4.7,192.08,192.02,2.6039]
[1736496098296,4.7,192.08,192.04,2.6037]
[1736496099207,4.7,192.08,191.94,3.1521]
[1736496099897,7.3033,192.08,192.02,2.6039]
[1736496100106,4.7,192.08,192.02,2.6039]
[1736496100407,2.6034,192.07,192.02,2.6039]
[1736496100806,4.7,192.08,191.94,3.1521]
[1736496102015,2.6041,192.02,191.96,2.6048]
[1736496102399,2.6041,192.02,191.94,3.1521]
[1736496102603,2.6041,192.02,191.97,2.6046]
[1736496104808,4.7,192.07,191.97,2.6046]
[1736496105009,2.6039,192.03,191.97,2.6046]
[1736496106114,2.6039,192.03,191.98,2.6045]
[1736496106816,2.6039,192.03,191.97,2.6047]
[1736496107918,4.7,192.07,191.94,3.1521]
[1736496109522,4.7,192.07,191.97,2.6047]
[1736496109523,2.604,192.03,191.97,2.6047]
[1736496111516,4.7,192.07,191.94,3.1521]
[1736496111715,2.6035,192.06,191.94,3.1521]
[1736496112715,7.3032,192.08,192.01,2.6041]
[1736496112910,4.7,192.08,192.01,2.6041]
[1736496113216,2.6029,192.1,192.0,2.6042]
[1736496113420,4.7,192.12,191.94,3.1521]
[1736496113816,10.41979147,192.06,192.0,2.6041]
[1736496114016,10.41979147,192.06,191.95,7.22756767]
[1736496114723,2.6037,192.05,191.98,2.6045]
[1736496115629,10.41979147,192.03,191.98,2.6045]
[1736496116525,13.02379147,192.03,191.96,2.6048]
[1736496117323,10.41979147,192.0,191.96,2.6048]
[1736496118728,10.41979147,191.97,191.91,30.4898707]
[1736496118926,10.41979147,191.94,191.91,30.4898707]
[1736496119926,10.41979147,191.94,191.91,33.0952707]
[1736496120126,10.41979147,191.94,191.91,4.185]
[1736496121231,10.41979147,191.94,191.91,1.5796]
[1736496121430,10.41979147,191.94,191.92,2.6053]
[1736496121624,10.41979147,191.94,191.87,1.5744]
[1736496121932,10.41979147,191.91,191.88,2.6059]
[1736496122527,10.41979147,191.91,191.9,2.6056]
[1736496122830,10.41979147,191.94,191.87,1.5744]
[1736496123221,4.7,191.96,191.87,1.5744]
[1736496123522,10.41979147,192.01,191.87,11.99419147]
[1736496123721,10.41979147,192.01,191.98,2.6044]
[1736496123923,10.41979147,192.01,191.9,10.41979147]
[1736496124327,10.41979147,192.04,191.9,10.41979147]
[1736496124526,10.41979147,192.04,191.9,17.64735914]
[1736496125323,4.7,192.06,191.94,10.41979147]
[1736496125524,7.3035,192.06,192.0,2.6042]
[1736496126224,7.3035,192.06,191.96,1.5563]
[1736496126225,10.41979147,192.07,191.96,1.5563]
[1736496126428,10.41979147,192.07,191.97,10.41979147]
[1736496127331,2.6035,192.06,192.0,2.6041]
[1736496127928,10.41979147,192.04,191.96,1.5563]
[1736496128633,10.41979147,192.01,191.93,28.9102707]
[1736496128834,10.41979147,192.01,191.91,3.0779]
[1736496129035,15.11979147,192.01,191.91,3.0779]
[1736496130333,15.11979147,192.01,191.94,2.6051]
[1736496130929,17.72409147,192.01,191.91,3.0779]
[1736496131135,17.72409147,192.01,191.95,2.605]
[1736496131535,10.41979147,191.98,191.91,3.0779]
[1736496131835,10.41979147,191.98,191.91,1.5563]
[1736496132230,15.11979147,192.01,191.91,1.5563]
[1736496134139,15.11979147,192.01,191.95,2.6048]
[1736496134539,15.11979147,192.01,191.91,1.5563]
[1736496134731,15.11979147,192.01,191.95,2.6049]
[1736496134937,2.6045,191.99,191.9,1.5953]
[1736496135242,10.41979147,191.98,191.9,1.5953]
[1736496135443,13.02439147,191.98,191.9,1.5953]
[1736496135842,10.41979147,191.98,191.93,2.6051]
[1736496136036,10.41979147,191.98,191.9,1.5953]
[1736496136239,15.11979147,192.01,191.9,1.5953]
[1736496136438,15.11979147,192.01,191.98,2.6045]
[1736496136838,15.11979147,192.01,191.9,1.5953]
[1736496137044,15.11979147,192.01,191.96,2.6047]
[1736496137344,4.7,192.01,191.92,10.41979147]
[1736496137643,7.3039,192.03,191.98,2.6045]
[1736496138540,7.3039,192.03,191.92,10.41979147]
[1736496138842,2.6042,192.01,191.9,8.82286767]
[1736496139045,10.41979147,192.01,191.9,8.82286767]
[1736496139244,10.41979147,192.01,191.94,2.605]
[1736496140142,10.41979147,192.01,191.93,2.6052]
[1736496141235,2.6046,191.98,191.93,2.6052]
[1736496141649,2.6048,191.96,191.88,1.5991]
[1736496142247,2.6048,191.96,191.9,2.6055]
[1736496143046,2.6048,191.96,191.91,2.6055]
[1736496150056,10.41979147,191.98,191.88,1.5991]
[1736496150352,10.41979147,191.95,191.84,1.5504]
[1736496151646,2.6053,191.93,191.87,2.606]
[1736496155554,10.41979147,191.92,191.84,1.5504]
[1736496157353,10.41979147,191.98,191.85,10.41979147]
[1736496157550,36.5169,192.07,191.88,10.41979147]
[1736496157551,15.65,192.07,191.88,10.41979147]
[1736496157753,10.41979147,192.01,191.91,10.41979147]
[1736496157950,10.41979147,192.01,191.92,3.1983]
[1736496158562,15.11979147,192.01,191.92,3.1983]
[1736496158856,4.7,192.03,191.92,3.1983]
[1736496159061,4.7,192.03,191.93,1.5291]
[1736496159761,10.41979147,192.04,191.94,10.41979147]
[1736496159955,4.7,192.05,191.94,10.41979147]
[1736496160159,2.604,192.03,191.96,2.6048]
[1736496160355,10.41979147,192.04,191.93,1.5291]
[1736496160554,10.41979147,192.01,191.92,3.1983]
[1736496160752,10.41979147,191.98,191.92,3.1983]
[1736496160954,10.41979147,191.98,191.89,28.9102707]
[1736496161463,10.41979147,191.98,191.88,1.5671]
[1736496162162,10.41979147,191.95,191.84,7.22756767]
[1736496162351,10.41979147,191.95,191.83,7.22756767]
[1736496162962,10.41979147,191.95,191.82,13.67989147]
[1736496163862,2.6054,191.92,191.85,2.6062]
[1736496164562,2.6054,191.92,191.86,2.6062]
[1736496165461,10.41979147,191.95,191.86,2.6062]
[1736496165660,10.41979147,191.95,191.82,13.67989147]
[1736496165661,4.7,191.97,191.82,13.67989147]
[1736496165866,4.7,191.97,191.88,10.41979147]
[1736496166162,4.7,191.97,191.94,2.605]
[1736496166365,4.7,191.97,191.89,1.6257]
[1736496166562,4.7,191.97,191.94,2.6051]
[1736496166762,4.7,191.97,191.9,3.191]
[1736496167460,10.41979147,192.01,191.91,10.41979147]
[1736496167661,15.11979147,192.04,191.91,10.41979147]
[1736496167865,17.72369147,192.04,191.94,2.605]
[1736496168064,17.72369147,192.04,191.91,10.41979147]
[1736496168065,15.11979147,192.04,191.91,10.41979147]
[1736496169560,2.6042,192.01,191.95,2.6049]
[1736496169759,2.6042,192.01,191.91,10.41979147]
[1736496170065,2.6044,191.99,191.91,10.41979147]
[1736496170261,15.11979147,192.04,191.91,10.41979147]
[1736496170862,2.6044,191.99,191.95,2.6049]
[1736496171058,2.6044,191.99,191.91,10.41979147]
[1736496171765,2.6047,191.97,191.92,2.6052]
[1736496172066,10.41979147,191.98,191.9,3.191]
[1736496173170,2.605,191.96,191.91,2.6055]
[1736496173468,10.41979147,191.98,191.91,2.6055]
[1736496174564,2.6047,191.97,191.9,3.191]
[1736496174765,2.6047,191.97,191.92,2.6053]
[1736496174961,10.41979147,192.01,191.9,3.191]
[1736496175164,13.02409147,192.01,191.9,3.191]
[1736496175669,10.41979147,192.01,191.9,3.191]
[1736496176765,10.41979147,192.01,191.92,2.6053]
[1736496177164,10.41979147,191.98,191.9,5.7965]